[Event "Titled Tuesday Blitz January 17 Early 2023"]
[White "Dehtiarov, Roman"]
[Black "Mamedov, Edgar"]
[WhiteFideId "14186640"]
[BlackFideId "13739980"]
[WhiteElo "2289"]
[BlackElo "2193"]
[Result "1/2-1/2"]
[Round "08"]
[TimeControl "180+2"]
[Date "2023.01.17"]
[WhiteClock "0:00:15"]
[BlackClock "0:00:05"]

1. e4 {[%clk 0:02:58]}  c5 {[%clk 0:02:58]} 2. Nc3 {[%clk 0:02:58]}  e6 {[%clk 0:02:57]} 3. f4 {[%clk 0:02:56]}  Nc6 {[%clk 0:02:56]} 4. Nf3 {[%clk 0:02:57]}  d5 {[%clk 0:02:55]} 5. Bb5 {[%clk 0:02:57]}  Ne7 {[%clk 0:02:55]} 6. O-O {[%clk 0:02:51]}  a6 {[%clk 0:02:55]} 7. Bxc6+ {[%clk 0:02:49]}  Nxc6 {[%clk 0:02:55]} 8. exd5 {[%clk 0:02:48]}  exd5 {[%clk 0:02:54]} 9. d4 {[%clk 0:02:47]}  cxd4 {[%clk 0:02:47]} 10. Re1+ {[%clk 0:02:47]}  Be7 {[%clk 0:02:44]} 11. Nxd4 {[%clk 0:02:47]}  O-O {[%clk 0:02:44]} 12. Be3 {[%clk 0:02:45]}  Bf6 {[%clk 0:02:42]} 13. Qd2 {[%clk 0:02:42]}  Re8 {[%clk 0:02:40]} 14. Bf2 {[%clk 0:02:36]}  Rxe1+ {[%clk 0:01:56]} 15. Rxe1 {[%clk 0:02:37]}  Bxd4 {[%clk 0:01:56]} 16. Bxd4 {[%clk 0:02:37]}  Bf5 {[%clk 0:01:56]} 17. Na4 {[%clk 0:02:20]}  Nxd4 {[%clk 0:00:58]} 18. Qxd4 {[%clk 0:02:21]}  Rc8 {[%clk 0:00:57]} 19. c3 {[%clk 0:02:02]}  Be4 {[%clk 0:00:22]} 20. Nc5 {[%clk 0:01:57]}  b6 {[%clk 0:00:22]} 21. Nxe4 {[%clk 0:01:56]}  dxe4 {[%clk 0:00:19]} 22. Qxd8+ {[%clk 0:01:56]}  Rxd8 {[%clk 0:00:19]} 23. Rxe4 {[%clk 0:01:56]}  g6 {[%clk 0:00:17]} 24. Rd4 {[%clk 0:01:56]}  Re8 {[%clk 0:00:14]} 25. Kf2 {[%clk 0:01:57]}  Re6 {[%clk 0:00:13]} 26. g3 {[%clk 0:01:56]}  Kg7 {[%clk 0:00:13]} 27. a4 {[%clk 0:01:56]}  h5 {[%clk 0:00:13]} 28. Rd3 {[%clk 0:01:55]}  Kf6 {[%clk 0:00:12]} 29. c4 {[%clk 0:01:52]}  Rc6 {[%clk 0:00:11]} 30. b3 {[%clk 0:01:53]}  Ke7 {[%clk 0:00:10]} 31. Rd5 {[%clk 0:01:50]}  Re6 {[%clk 0:00:08]} 32. a5 {[%clk 0:01:40]}  bxa5 {[%clk 0:00:07]} 33. Rxa5 {[%clk 0:01:41]}  Rb6 {[%clk 0:00:08]} 34. Ra3 {[%clk 0:01:41]}  Kd6 {[%clk 0:00:08]} 35. Ke3 {[%clk 0:01:41]}  Kc5 {[%clk 0:00:08]} 36. Kd3 {[%clk 0:01:38]}  Kb4 {[%clk 0:00:08]} 37. Ra1 {[%clk 0:01:39]}  Rd6+ {[%clk 0:00:08]} 38. Kc2 {[%clk 0:01:40]}  Re6 {[%clk 0:00:08]} 39. Ra4+ {[%clk 0:01:40]}  Kc5 {[%clk 0:00:08]} 40. Kd3 {[%clk 0:01:37]}  Kb6 {[%clk 0:00:06]} 41. b4 {[%clk 0:01:35]}  Re1 {[%clk 0:00:06]} 42. c5+ {[%clk 0:01:35]}  Kb5 {[%clk 0:00:06]} 43. Ra5+ {[%clk 0:01:35]}  Kxb4 {[%clk 0:00:06]} 44. Rxa6 {[%clk 0:01:35]}  Kxc5 {[%clk 0:00:06]} 45. Rf6 {[%clk 0:01:25]}  Re7 {[%clk 0:00:05]} 46. f5 {[%clk 0:01:24]}  Rd7+ {[%clk 0:00:03]} 47. Ke3 {[%clk 0:01:22]}  gxf5 {[%clk 0:00:03]} 48. Rxf5+ {[%clk 0:01:23]}  Kd6 {[%clk 0:00:02]} 49. Rxh5 {[%clk 0:01:23]}  Ke6 {[%clk 0:00:03]} 50. Ra5 {[%clk 0:01:21]}  f6 {[%clk 0:00:03]} 51. g4 {[%clk 0:01:19]}  Rh7 {[%clk 0:00:02]} 52. Ra2 {[%clk 0:01:19]}  Rh4 {[%clk 0:00:02]} 53. Kf4 {[%clk 0:01:16]}  Rh3 {[%clk 0:00:03]} 54. Re2+ {[%clk 0:01:13]}  Kf7 {[%clk 0:00:03]} 55. Kf5 {[%clk 0:01:03]}  Rf3+ {[%clk 0:00:03]} 56. Ke4 {[%clk 0:01:03]}  Rh3 {[%clk 0:00:03]} 57. Kf4 {[%clk 0:01:01]}  Kg6 {[%clk 0:00:03]} 58. Rf2 {[%clk 0:00:59]}  Rh8 {[%clk 0:00:03]} 59. Kg3 {[%clk 0:00:56]}  Ra8 {[%clk 0:00:03]} 60. Rf3 {[%clk 0:00:56]}  Ra1 {[%clk 0:00:02]} 61. h4 {[%clk 0:00:55]}  Rg1+ {[%clk 0:00:03]} 62. Kf4 {[%clk 0:00:56]}  Rh1 {[%clk 0:00:03]} 63. h5+ {[%clk 0:00:55]}  Kg7 {[%clk 0:00:03]} 64. Kf5 {[%clk 0:00:49]}  Ra1 {[%clk 0:00:03]} 65. Re3 {[%clk 0:00:41]}  Ra5+ {[%clk 0:00:03]} 66. Kf4 {[%clk 0:00:41]}  Ra4+ {[%clk 0:00:04]} 67. Re4 {[%clk 0:00:41]}  Ra5 {[%clk 0:00:04]} 68. Rc4 {[%clk 0:00:40]}  Ra1 {[%clk 0:00:02]} 69. Rc7+ {[%clk 0:00:23]}  Kh6 {[%clk 0:00:03]} 70. Rf7 {[%clk 0:00:22]}  Rf1+ {[%clk 0:00:02]} 71. Kg3 {[%clk 0:00:22]}  f5 {[%clk 0:00:02]} 72. Rxf5 {[%clk 0:00:20]}  Rxf5 {[%clk 0:00:01]} 73. gxf5 {[%clk 0:00:21]}  Kg5 {[%clk 0:00:02]} 74. h6 {[%clk 0:00:15]}  Kxh6 {[%clk 0:00:02]} 75. Kf4 {[%clk 0:00:15]}  Kg7 {[%clk 0:00:03]} 76. Ke5 {[%clk 0:00:12]}  Kf7 {[%clk 0:00:03]} 77. f6 {[%clk 0:00:13]}  Kf8 {[%clk 0:00:03]} 78. Ke4 {[%clk 0:00:13]}  Kf7 {[%clk 0:00:04]} 79. Kf5 {[%clk 0:00:14]}  Kf8 {[%clk 0:00:04]} 80. Kg5 {[%clk 0:00:14]}  Kf7 {[%clk 0:00:04]} 81. Kf5 {[%clk 0:00:14]}  Kf8 {[%clk 0:00:05]} 82. Kg6 {[%clk 0:00:14]}  Kg8 {[%clk 0:00:05]} 83. Kg5 {[%clk 0:00:14]}  Kf7 {[%clk 0:00:05]} 84. Kf5 {[%clk 0:00:15]} 1/2-1/2


[Site "https://www.chess.com"]

[Event "Titled Tuesday Blitz January 17 Early 2023"]
[White "Carnicelli, Valerio"]
[Black "Jovic, Stanoje"]
[WhiteFideId "856185"]
[BlackFideId "905020"]
[WhiteElo "2370"]
[BlackElo "2075"]
[Result "0-1"]
[Round "08"]
[TimeControl "180+2"]
[Date "2023.01.17"]
[WhiteClock "0:00:01"]
[BlackClock "0:00:20"]

1. b3 {[%clk 0:03:00]}  Nf6 {[%clk 0:02:58]} 2. Bb2 {[%clk 0:03:01]}  e6 {[%clk 0:02:58]} 3. Nf3 {[%clk 0:02:59]}  Be7 {[%clk 0:02:57]} 4. g4 {[%clk 0:03:00]}  h6 {[%clk 0:02:55]} 5. Rg1 {[%clk 0:02:59]}  c5 {[%clk 0:02:52]} 6. d3 {[%clk 0:02:57]}  d5 {[%clk 0:02:52]} 7. Nbd2 {[%clk 0:02:56]}  Nc6 {[%clk 0:02:50]} 8. e3 {[%clk 0:02:56]}  b5 {[%clk 0:02:47]} 9. Ne5 {[%clk 0:02:55]}  Nxe5 {[%clk 0:02:40]} 10. Bxe5 {[%clk 0:02:56]}  a5 {[%clk 0:02:39]} 11. Qf3 {[%clk 0:02:55]}  a4 {[%clk 0:02:34]} 12. h4 {[%clk 0:02:48]}  axb3 {[%clk 0:02:32]} 13. axb3 {[%clk 0:02:49]}  Rxa1+ {[%clk 0:02:30]} 14. Bxa1 {[%clk 0:02:50]}  Qa5 {[%clk 0:02:30]} 15. Be5 {[%clk 0:02:48]}  Qa2 {[%clk 0:02:25]} 16. Qd1 {[%clk 0:02:42]}  g5 {[%clk 0:02:19]} 17. Rh1 {[%clk 0:02:38]}  Rg8 {[%clk 0:02:14]} 18. hxg5 {[%clk 0:02:35]}  hxg5 {[%clk 0:02:14]} 19. Be2 {[%clk 0:02:27]}  b4 {[%clk 0:02:12]} 20. Qa1 {[%clk 0:02:21]}  Qxa1+ {[%clk 0:02:05]} 21. Bxa1 {[%clk 0:02:22]}  Nd7 {[%clk 0:02:00]} 22. Nf3 {[%clk 0:02:02]}  Bb7 {[%clk 0:01:54]} 23. Rh7 {[%clk 0:01:39]}  Bf6 {[%clk 0:01:50]} 24. Bxf6 {[%clk 0:01:21]}  Nxf6 {[%clk 0:01:50]} 25. Rh1 {[%clk 0:01:21]}  Nxg4 {[%clk 0:01:40]} 26. Rg1 {[%clk 0:01:19]}  Nf6 {[%clk 0:01:40]} 27. Rxg5 {[%clk 0:01:17]}  Rxg5 {[%clk 0:01:40]} 28. Nxg5 {[%clk 0:01:18]}  d4 {[%clk 0:01:38]} 29. exd4 {[%clk 0:01:11]}  cxd4 {[%clk 0:01:38]} 30. Bf3 {[%clk 0:01:12]}  Nd5 {[%clk 0:01:28]} 31. Ne4 {[%clk 0:01:03]}  Ke7 {[%clk 0:01:24]} 32. Nc5 {[%clk 0:01:02]}  Bc8 {[%clk 0:01:10]} 33. Bxd5 {[%clk 0:00:47]}  exd5 {[%clk 0:01:10]} 34. Na4 {[%clk 0:00:45]}  Kd6 {[%clk 0:01:06]} 35. Nb2 {[%clk 0:00:38]}  Bg4 {[%clk 0:01:03]} 36. Na4 {[%clk 0:00:31]}  Bd7 {[%clk 0:00:59]} 37. Nb6 {[%clk 0:00:22]}  Bg4 {[%clk 0:00:55]} 38. Kd2 {[%clk 0:00:22]}  f6 {[%clk 0:00:52]} 39. Na4 {[%clk 0:00:19]}  Bd7 {[%clk 0:00:46]} 40. Nb2 {[%clk 0:00:15]}  Bg4 {[%clk 0:00:45]} 41. Ke1 {[%clk 0:00:15]}  Kc6 {[%clk 0:00:39]} 42. Kf1 {[%clk 0:00:15]}  Kd6 {[%clk 0:00:38]} 43. Kg2 {[%clk 0:00:15]}  Ke5 {[%clk 0:00:37]} 44. Kg3 {[%clk 0:00:15]}  Be2 {[%clk 0:00:32]} 45. f3 {[%clk 0:00:12]}  Bf1 {[%clk 0:00:24]} 46. Nd1 {[%clk 0:00:11]}  Be2 {[%clk 0:00:22]} 47. Nf2 {[%clk 0:00:11]}  Kf5 {[%clk 0:00:21]} 48. Ng4 {[%clk 0:00:03]}  Bd1 {[%clk 0:00:20]} 49. Nh6+ {[%clk 0:00:03]}  Ke6 {[%clk 0:00:20]} 50. Ng4 {[%clk 0:00:01]}  Bxc2 {[%clk 0:00:20]} 0-1


[Site "https://www.chess.com"]

[Event "Titled Tuesday Blitz January 17 Early 2023"]
[White "Becerra, Juan David"]
[Black "Bodnaruk, Anastasia"]
[WhiteFideId "4404998"]
[BlackFideId "4181751"]
[WhiteElo "2382"]
[BlackElo "2350"]
[Result "0-1"]
[Round "08"]
[TimeControl "180+2"]
[Date "2023.01.17"]
[WhiteClock "0:00:01"]
[BlackClock "0:00:25"]

1. d4 {[%clk 0:02:59]}  Nf6 {[%clk 0:02:59]} 2. c4 {[%clk 0:02:58]}  g6 {[%clk 0:03:00]} 3. Nc3 {[%clk 0:02:58]}  Bg7 {[%clk 0:03:00]} 4. e4 {[%clk 0:02:58]}  d6 {[%clk 0:03:01]} 5. Nf3 {[%clk 0:02:59]}  O-O {[%clk 0:03:01]} 6. Be2 {[%clk 0:02:59]}  e5 {[%clk 0:03:01]} 7. d5 {[%clk 0:02:57]}  a5 {[%clk 0:03:00]} 8. Bg5 {[%clk 0:02:57]}  h6 {[%clk 0:02:59]} 9. Be3 {[%clk 0:02:56]}  Na6 {[%clk 0:02:57]} 10. Nd2 {[%clk 0:02:55]}  Nd7 {[%clk 0:02:47]} 11. O-O {[%clk 0:02:36]}  Ndc5 {[%clk 0:02:45]} 12. a3 {[%clk 0:02:32]}  Bd7 {[%clk 0:02:38]} 13. Nb3 {[%clk 0:02:22]}  b6 {[%clk 0:02:32]} 14. Nxc5 {[%clk 0:02:15]}  Nxc5 {[%clk 0:02:31]} 15. b4 {[%clk 0:02:13]}  axb4 {[%clk 0:02:30]} 16. axb4 {[%clk 0:02:14]}  Rxa1 {[%clk 0:02:30]} 17. Qxa1 {[%clk 0:02:14]}  Nb3 {[%clk 0:02:31]} 18. Qa7 {[%clk 0:01:54]}  f5 {[%clk 0:02:09]} 19. f3 {[%clk 0:01:47]}  Nd4 {[%clk 0:01:55]} 20. Bd3 {[%clk 0:01:44]}  Rf7 {[%clk 0:01:37]} 21. c5 {[%clk 0:01:43]}  bxc5 {[%clk 0:01:28]} 22. bxc5 {[%clk 0:01:44]}  dxc5 {[%clk 0:01:29]} 23. Rb1 {[%clk 0:01:30]}  Kh7 {[%clk 0:01:23]} 24. Rb8 {[%clk 0:01:24]}  Qh4 {[%clk 0:01:20]} 25. Rb1 {[%clk 0:00:38]}  g5 {[%clk 0:01:06]} 26. exf5 {[%clk 0:00:30]}  Bxf5 {[%clk 0:01:01]} 27. Ne4 {[%clk 0:00:29]}  g4 {[%clk 0:00:48]} 28. Bxd4 {[%clk 0:00:17]}  exd4 {[%clk 0:00:44]} 29. Nxc5 {[%clk 0:00:07]}  gxf3 {[%clk 0:00:39]} 30. g3 {[%clk 0:00:07]}  f2+ {[%clk 0:00:35]} 31. Kg2 {[%clk 0:00:06]}  Qh5 {[%clk 0:00:28]} 32. Qa2 {[%clk 0:00:05]}  Qh3+ {[%clk 0:00:25]} 33. Kh1 {[%clk 0:00:01]}  Bxd3 {[%clk 0:00:25]} 0-1


[Site "https://www.chess.com"]

[Event "Titled Tuesday Blitz January 17 Early 2023"]
[White "Donskov, Anatoly"]
[Black "Royal, Shreyas"]
[WhiteFideId "24143413"]
[BlackFideId "448869"]
[WhiteElo "2279"]
[BlackElo "2438"]
[Result "0-1"]
[Round "08"]
[TimeControl "180+2"]
[Date "2023.01.17"]
[WhiteClock "0:00:11"]
[BlackClock "0:01:48"]

1. e4 {[%clk 0:03:00]}  c6 {[%clk 0:03:00]} 2. d4 {[%clk 0:03:00]}  d5 {[%clk 0:03:01]} 3. Nc3 {[%clk 0:03:00]}  dxe4 {[%clk 0:03:00]} 4. Nxe4 {[%clk 0:03:01]}  h6 {[%clk 0:03:00]} 5. Bc4 {[%clk 0:02:59]}  Bf5 {[%clk 0:03:00]} 6. Ng3 {[%clk 0:02:59]}  Bh7 {[%clk 0:02:59]} 7. Nf3 {[%clk 0:02:56]}  Nd7 {[%clk 0:02:58]} 8. O-O {[%clk 0:02:54]}  Ngf6 {[%clk 0:02:57]} 9. Re1 {[%clk 0:02:51]}  e6 {[%clk 0:02:57]} 10. Bd3 {[%clk 0:02:49]}  Bxd3 {[%clk 0:02:55]} 11. Qxd3 {[%clk 0:02:49]}  Bd6 {[%clk 0:02:53]} 12. b3 {[%clk 0:02:38]}  O-O {[%clk 0:02:52]} 13. Bb2 {[%clk 0:02:38]}  c5 {[%clk 0:02:47]} 14. Rad1 {[%clk 0:02:34]}  cxd4 {[%clk 0:02:42]} 15. Qxd4 {[%clk 0:02:23]}  Bxg3 {[%clk 0:02:41]} 16. hxg3 {[%clk 0:02:23]}  Qe7 {[%clk 0:02:41]} 17. c4 {[%clk 0:02:09]}  Rfd8 {[%clk 0:02:38]} 18. Qf4 {[%clk 0:02:04]}  a6 {[%clk 0:02:34]} 19. Rd2 {[%clk 0:01:54]}  Nc5 {[%clk 0:02:28]} 20. Bxf6 {[%clk 0:01:43]}  Qxf6 {[%clk 0:02:26]} 21. Qxf6 {[%clk 0:01:43]}  gxf6 {[%clk 0:02:27]} 22. Red1 {[%clk 0:01:41]}  Rxd2 {[%clk 0:02:26]} 23. Rxd2 {[%clk 0:01:42]}  a5 {[%clk 0:02:24]} 24. Kf1 {[%clk 0:01:35]}  Kf8 {[%clk 0:02:24]} 25. Rd4 {[%clk 0:01:08]}  Ke7 {[%clk 0:02:15]} 26. Ke2 {[%clk 0:01:03]}  a4 {[%clk 0:02:03]} 27. b4 {[%clk 0:01:01]}  Na6 {[%clk 0:02:03]} 28. a3 {[%clk 0:00:59]}  Nc7 {[%clk 0:02:04]} 29. Nd2 {[%clk 0:00:52]}  b5 {[%clk 0:02:04]} 30. Rh4 {[%clk 0:00:40]}  Rh8 {[%clk 0:02:01]} 31. Kd3 {[%clk 0:00:37]}  Rd8+ {[%clk 0:01:53]} 32. Kc3 {[%clk 0:00:36]}  bxc4 {[%clk 0:01:53]} 33. Nxc4 {[%clk 0:00:27]}  Nb5+ {[%clk 0:01:52]} 34. Kb2 {[%clk 0:00:21]}  Rd3 {[%clk 0:01:48]} 35. Rxh6 {[%clk 0:00:11]}  Rb3+ {[%clk 0:01:48]} 36. Ka2 {[%clk 0:00:11]}  Nc3+ {[%clk 0:01:48]} 37. Ka1 {[%clk 0:00:11]}  Rb1# {[%clk 0:01:48]} 0-1


[Site "https://www.chess.com"]

[Event "Titled Tuesday Blitz January 17 Early 2023"]
[White "Tasev, Dejan"]
[Black "Bychkov, Vladimir"]
[WhiteFideId "936618"]
[BlackFideId "24151513"]
[WhiteElo "2205"]
[BlackElo "2225"]
[Result "0-1"]
[Round "08"]
[TimeControl "180+2"]
[Date "2023.01.17"]
[WhiteClock "0:00:02"]
[BlackClock "0:00:54"]

1. e4 {[%clk 0:03:00]}  c6 {[%clk 0:02:59]} 2. d4 {[%clk 0:03:00]}  d5 {[%clk 0:03:00]} 3. Nc3 {[%clk 0:03:01]}  dxe4 {[%clk 0:03:00]} 4. Nxe4 {[%clk 0:03:02]}  Nf6 {[%clk 0:03:00]} 5. Nxf6+ {[%clk 0:03:02]}  exf6 {[%clk 0:03:01]} 6. c3 {[%clk 0:03:02]}  Bd6 {[%clk 0:03:02]} 7. Bd3 {[%clk 0:03:02]}  Na6 {[%clk 0:03:02]} 8. Qc2 {[%clk 0:03:01]}  Nc7 {[%clk 0:03:01]} 9. Ne2 {[%clk 0:03:01]}  h5 {[%clk 0:03:00]} 10. h3 {[%clk 0:03:01]}  a5 {[%clk 0:02:58]} 11. O-O {[%clk 0:03:00]}  a4 {[%clk 0:02:56]} 12. Bd2 {[%clk 0:02:58]}  Nd5 {[%clk 0:02:55]} 13. Rae1 {[%clk 0:02:55]}  Kf8 {[%clk 0:02:54]} 14. a3 {[%clk 0:02:48]}  b5 {[%clk 0:02:53]} 15. f4 {[%clk 0:02:45]}  g6 {[%clk 0:02:42]} 16. Ng3 {[%clk 0:02:37]}  f5 {[%clk 0:02:39]} 17. Ne2 {[%clk 0:02:27]}  Kg7 {[%clk 0:02:37]} 18. Kh1 {[%clk 0:02:24]}  Be6 {[%clk 0:02:36]} 19. Ng1 {[%clk 0:02:21]}  Nb6 {[%clk 0:02:32]} 20. Nf3 {[%clk 0:02:18]}  Nc4 {[%clk 0:02:25]} 21. Ne5 {[%clk 0:01:58]}  Qc7 {[%clk 0:02:10]} 22. Bc1 {[%clk 0:01:42]}  h4 {[%clk 0:02:03]} 23. Qe2 {[%clk 0:01:24]}  Bd5 {[%clk 0:02:01]} 24. Nxc4 {[%clk 0:01:11]}  bxc4 {[%clk 0:01:58]} 25. Bxc4 {[%clk 0:01:10]}  Rhe8 {[%clk 0:01:50]} 26. Qd3 {[%clk 0:01:06]}  Rxe1 {[%clk 0:01:46]} 27. Rxe1 {[%clk 0:01:05]}  Bxf4 {[%clk 0:01:47]} 28. Bxd5 {[%clk 0:01:02]}  cxd5 {[%clk 0:01:42]} 29. Qb5 {[%clk 0:00:55]}  Bxc1 {[%clk 0:01:36]} 30. Rxc1 {[%clk 0:00:52]}  Qf4 {[%clk 0:01:33]} 31. Rf1 {[%clk 0:00:46]}  Qe4 {[%clk 0:01:32]} 32. Qb7 {[%clk 0:00:34]}  Re8 {[%clk 0:01:28]} 33. Qb4 {[%clk 0:00:33]}  Qd3 {[%clk 0:01:24]} 34. Rg1 {[%clk 0:00:32]}  Re3 {[%clk 0:01:24]} 35. Kh2 {[%clk 0:00:25]}  f4 {[%clk 0:01:20]} 36. Qd6 {[%clk 0:00:22]}  f3 {[%clk 0:01:19]} 37. gxf3 {[%clk 0:00:10]}  Rxf3 {[%clk 0:01:19]} 38. Qe5+ {[%clk 0:00:10]}  Kh7 {[%clk 0:01:17]} 39. Qxd5 {[%clk 0:00:01]}  Rxh3+ {[%clk 0:01:16]} 40. Kg2 {[%clk 0:00:02]}  Rg3+ {[%clk 0:01:16]} 41. Kh2 {[%clk 0:00:02]}  Rh3+ {[%clk 0:00:58]} 42. Kg2 {[%clk 0:00:02]}  Qg3+ {[%clk 0:00:56]} 43. Kf1 {[%clk 0:00:02]}  Qf4+ {[%clk 0:00:54]} 0-1


[Site "https://www.chess.com"]

[Event "Titled Tuesday Blitz January 17 Early 2023"]
[White "Kabilov, Amin"]
[Black "Djokovic, Nebojsa"]
[WhiteFideId "14700859"]
[BlackFideId "938300"]
[WhiteElo "2207"]
[BlackElo "2119"]
[Result "0-1"]
[Round "08"]
[TimeControl "180+2"]
[Date "2023.01.17"]
[WhiteClock "0:00:01"]
[BlackClock "0:00:08"]

1. d4 {[%clk 0:03:00]}  e6 {[%clk 0:03:00]} 2. c4 {[%clk 0:03:00]}  Nf6 {[%clk 0:03:01]} 3. Nf3 {[%clk 0:03:00]}  Bb4+ {[%clk 0:03:01]} 4. Nbd2 {[%clk 0:02:57]}  O-O {[%clk 0:03:01]} 5. a3 {[%clk 0:02:57]}  Be7 {[%clk 0:03:02]} 6. e4 {[%clk 0:02:57]}  d6 {[%clk 0:03:02]} 7. Bd3 {[%clk 0:02:56]}  e5 {[%clk 0:03:00]} 8. O-O {[%clk 0:02:53]}  exd4 {[%clk 0:02:57]} 9. Nxd4 {[%clk 0:02:51]}  Nc6 {[%clk 0:02:58]} 10. N2f3 {[%clk 0:02:45]}  Nd7 {[%clk 0:02:52]} 11. b4 {[%clk 0:02:17]}  a5 {[%clk 0:02:49]} 12. Nxc6 {[%clk 0:02:12]}  bxc6 {[%clk 0:02:49]} 13. Bb2 {[%clk 0:02:12]}  Bf6 {[%clk 0:02:48]} 14. Qc2 {[%clk 0:01:27]}  Rb8 {[%clk 0:02:37]} 15. Rab1 {[%clk 0:01:15]}  axb4 {[%clk 0:02:25]} 16. axb4 {[%clk 0:01:11]}  h6 {[%clk 0:02:13]} 17. Nd4 {[%clk 0:01:05]}  Bb7 {[%clk 0:01:51]} 18. Nf5 {[%clk 0:00:58]}  Bxb2 {[%clk 0:01:45]} 19. Rxb2 {[%clk 0:00:46]}  Qf6 {[%clk 0:01:45]} 20. Rb3 {[%clk 0:00:41]}  Ra8 {[%clk 0:01:43]} 21. Be2 {[%clk 0:00:39]}  Ne5 {[%clk 0:01:30]} 22. Rg3 {[%clk 0:00:39]}  Ng6 {[%clk 0:01:25]} 23. c5 {[%clk 0:00:39]}  d5 {[%clk 0:01:04]} 24. h4 {[%clk 0:00:25]}  Bc8 {[%clk 0:00:59]} 25. Nxh6+ {[%clk 0:00:11]}  gxh6 {[%clk 0:00:54]} 26. h5 {[%clk 0:00:11]}  dxe4 {[%clk 0:00:38]} 27. hxg6 {[%clk 0:00:10]}  fxg6 {[%clk 0:00:38]} 28. Qxe4 {[%clk 0:00:10]}  Bf5 {[%clk 0:00:39]} 29. Bc4+ {[%clk 0:00:10]}  Kg7 {[%clk 0:00:37]} 30. Qf4 {[%clk 0:00:10]}  Ra7 {[%clk 0:00:18]} 31. Re3 {[%clk 0:00:10]}  Rb7 {[%clk 0:00:15]} 32. Rfe1 {[%clk 0:00:09]}  Rxb4 {[%clk 0:00:14]} 33. Re7+ {[%clk 0:00:09]}  Rf7 {[%clk 0:00:12]} 34. Rxf7+ {[%clk 0:00:09]}  Qxf7 {[%clk 0:00:12]} 35. Qe5+ {[%clk 0:00:08]}  Qf6 {[%clk 0:00:12]} 36. Qxc7+ {[%clk 0:00:08]}  Kf8 {[%clk 0:00:10]} 37. Ba2 {[%clk 0:00:01]}  Rb2 {[%clk 0:00:08]} 0-1


[Site "https://www.chess.com"]

[Event "Titled Tuesday Blitz January 17 Early 2023"]
[White "Divya Deshmukh"]
[Black "Skurikhin, Dmitrij"]
[WhiteFideId "35006916"]
[BlackFideId "4161297"]
[WhiteElo "2372"]
[BlackElo "2297"]
[Result "1-0"]
[Round "08"]
[TimeControl "180+2"]
[Date "2023.01.17"]
[WhiteClock "0:01:17"]
[BlackClock "0:00:04"]

1. d4 {[%clk 0:03:00]}  d5 {[%clk 0:02:59]} 2. c4 {[%clk 0:03:00]}  c6 {[%clk 0:02:59]} 3. Nc3 {[%clk 0:03:00]}  Nf6 {[%clk 0:02:59]} 4. Nf3 {[%clk 0:03:00]}  dxc4 {[%clk 0:02:59]} 5. a4 {[%clk 0:03:00]}  Bf5 {[%clk 0:02:58]} 6. Ne5 {[%clk 0:02:59]}  Nbd7 {[%clk 0:02:57]} 7. Nxc4 {[%clk 0:02:59]}  Qc7 {[%clk 0:02:58]} 8. g3 {[%clk 0:02:58]}  e5 {[%clk 0:02:57]} 9. dxe5 {[%clk 0:02:58]}  Nxe5 {[%clk 0:02:58]} 10. Bf4 {[%clk 0:02:58]}  Nfd7 {[%clk 0:02:58]} 11. Bg2 {[%clk 0:02:49]}  f6 {[%clk 0:02:57]} 12. O-O {[%clk 0:02:47]}  Nc5 {[%clk 0:02:57]} 13. Qd4 {[%clk 0:02:42]}  Nb3 {[%clk 0:02:52]} 14. Qe3 {[%clk 0:02:40]}  Bc5 {[%clk 0:02:35]} 15. Bxe5 {[%clk 0:02:37]}  fxe5 {[%clk 0:02:35]} 16. Qg5 {[%clk 0:02:35]}  O-O {[%clk 0:02:16]} 17. Rad1 {[%clk 0:02:10]}  h6 {[%clk 0:02:09]} 18. Qh5 {[%clk 0:02:08]}  Rae8 {[%clk 0:01:50]} 19. e4 {[%clk 0:02:00]}  Bh7 {[%clk 0:01:39]} 20. Ne3 {[%clk 0:01:54]}  Bxe3 {[%clk 0:01:04]} 21. fxe3 {[%clk 0:01:53]}  Rxf1+ {[%clk 0:01:03]} 22. Bxf1 {[%clk 0:01:53]}  g6 {[%clk 0:00:34]} 23. Qxh6 {[%clk 0:01:48]}  Qf7 {[%clk 0:00:30]} 24. Be2 {[%clk 0:01:20]}  Na5 {[%clk 0:00:05]} 25. b4 {[%clk 0:01:16]}  Nc4 {[%clk 0:00:04]} 26. Bxc4 {[%clk 0:01:16]}  Qxc4 {[%clk 0:00:04]} 27. Rd7 {[%clk 0:01:17]} 1-0


[Site "https://www.chess.com"]

[Event "Titled Tuesday Blitz January 17 Early 2023"]
[White "Rios Escobar, Adan"]
[Black "Saravana, Krishnan P."]
[WhiteFideId "3403645"]
[BlackFideId "5018382"]
[WhiteElo "2234"]
[BlackElo "2284"]
[Result "1-0"]
[Round "08"]
[TimeControl "180+2"]
[Date "2023.01.17"]
[WhiteClock "0:00:35"]
[BlackClock "0:01:04"]

1. d4 {[%clk 0:02:49]}  e6 {[%clk 0:02:56]} 2. c4 {[%clk 0:02:48]}  Nf6 {[%clk 0:02:56]} 3. g3 {[%clk 0:02:47]}  Bb4+ {[%clk 0:02:55]} 4. Nd2 {[%clk 0:02:45]}  a5 {[%clk 0:02:55]} 5. Bg2 {[%clk 0:02:45]}  O-O {[%clk 0:02:56]} 6. Nf3 {[%clk 0:02:45]}  d6 {[%clk 0:02:56]} 7. O-O {[%clk 0:02:45]}  Re8 {[%clk 0:02:57]} 8. Nb1 {[%clk 0:02:43]}  d5 {[%clk 0:02:51]} 9. Qc2 {[%clk 0:02:37]}  dxc4 {[%clk 0:02:50]} 10. Nbd2 {[%clk 0:02:26]}  b6 {[%clk 0:02:38]} 11. Ng5 {[%clk 0:02:20]}  h6 {[%clk 0:02:35]} 12. Bxa8 {[%clk 0:02:18]}  hxg5 {[%clk 0:02:34]} 13. Nxc4 {[%clk 0:02:12]}  Nd5 {[%clk 0:02:19]} 14. a3 {[%clk 0:02:10]}  Be7 {[%clk 0:02:00]} 15. e4 {[%clk 0:02:08]}  Nf6 {[%clk 0:02:00]} 16. Rd1 {[%clk 0:02:00]}  c6 {[%clk 0:01:59]} 17. Bxg5 {[%clk 0:01:53]}  Qc7 {[%clk 0:01:57]} 18. Bf4 {[%clk 0:01:53]}  Qa7 {[%clk 0:01:56]} 19. Bxb8 {[%clk 0:01:53]}  Qxa8 {[%clk 0:01:50]} 20. Bc7 {[%clk 0:01:47]}  b5 {[%clk 0:01:45]} 21. Nb6 {[%clk 0:01:47]}  Qb7 {[%clk 0:01:45]} 22. Nxc8 {[%clk 0:01:47]}  Rxc8 {[%clk 0:01:41]} 23. Bxa5 {[%clk 0:01:46]}  c5 {[%clk 0:01:42]} 24. d5 {[%clk 0:01:32]}  exd5 {[%clk 0:01:41]} 25. exd5 {[%clk 0:01:32]}  Bd6 {[%clk 0:01:37]} 26. Qf5 {[%clk 0:01:28]}  b4 {[%clk 0:01:25]} 27. axb4 {[%clk 0:01:27]}  cxb4 {[%clk 0:01:23]} 28. Bb6 {[%clk 0:01:25]}  Re8 {[%clk 0:01:16]} 29. Bd4 {[%clk 0:01:13]}  Nxd5 {[%clk 0:01:16]} 30. Bxg7 {[%clk 0:01:08]}  Kxg7 {[%clk 0:01:15]} 31. Qg5+ {[%clk 0:00:51]}  Kf8 {[%clk 0:01:07]} 32. Rxd5 {[%clk 0:00:51]}  Be7 {[%clk 0:01:04]} 33. Qh6+ {[%clk 0:00:48]}  Kg8 {[%clk 0:01:04]} 34. Rh5 {[%clk 0:00:35]} 1-0


[Site "https://www.chess.com"]